bitfinex/quotes_SOLUSD_20230120
["timestamp","ask_amount","ask_price","bid_price","bid_amount"]
[1674235688133,10.0,22.207,22.189,20.0]
[1674235688343,10.0,22.207,22.19,17.0]
[1674235688564,10.0,22.207,22.191,20.0]
[1674235688777,10.0,22.207,22.192,17.0]
[1674235690351,10.0,22.207,22.191,20.0]
[1674235690580,10.0,22.207,22.19,20.0]
[1674235690980,10.0,22.207,22.191,20.42279918]
[1674235691185,10.0,22.207,22.192,10.0]
[1674235691400,10.0,22.207,22.192,43.8]
[1674235691630,10.0,22.207,22.193,17.0]
[1674235691854,10.0,22.207,22.193,37.42279918]
[1674235692049,10.0,22.207,22.194,30.42279918]
[1674235692257,43.77,22.213,22.195,50.8]
[1674235692450,33.77,22.216,22.196,20.0]
[1674235692667,43.76,22.219,22.197,50.8]
[1674235692867,10.0,22.219,22.198,10.0]
[1674235693077,43.76,22.219,22.199,70.79]
[1674235693413,123.8126,22.219,22.2,10.0]
[1674235693642,123.8126,22.219,22.201,50.79]
[1674235693822,10.0,22.219,22.202,10.0]
[1674235694036,10.0,22.219,22.203,50.79]
[1674235694247,10.0,22.219,22.204,10.0]
[1674235694452,10.0,22.219,22.205,17.0]
[1674235694652,10.0,22.219,22.206,20.0]
[1674235694868,10.0,22.219,22.207,17.0]
[1674235695085,10.0,22.219,22.208,20.0]
[1674235695304,10.0,22.219,22.209,17.0]
[1674235695505,10.0,22.219,22.21,53.78]
[1674235695720,10.0,22.223,22.211,17.0]
[1674235696253,10.0,22.223,22.203,33.79]
[1674235696561,33.76,22.222,22.203,33.79]
[1674235696752,10.0,22.221,22.201,20.42279918]
[1674235696970,10.0,22.221,22.202,33.79]
[1674235697427,10.0,22.221,22.202,54.21279918]
[1674235697806,10.0,22.221,22.203,20.0]
[1674235698016,10.0,22.227,22.21,27.44]
[1674235698244,10.0,22.227,22.211,53.78]
[1674235698454,10.0,22.227,22.212,17.0]
[1674235698673,10.0,22.227,22.213,33.77]
[1674235698977,10.0,22.227,22.214,17.0]
[1674235699621,10.0,22.227,22.213,17.0]
[1674235700014,10.0,22.227,22.212,33.77]
[1674235700224,33.75,22.226,22.201,33.79]
[1674235700454,10.0,22.225,22.201,33.79]
[1674235700659,50.76,22.224,22.199,33.79]
[1674235700850,10.0,22.223,22.199,33.79]
[1674235701072,50.76,22.222,22.199,33.79]
[1674235701276,50.76,22.222,22.199,33.52]
[1674235701486,10.0,22.221,22.2,10.0]
[1674235701700,50.76,22.22,22.2,10.0]
[1674235702027,50.76,22.22,22.201,20.42279918]
[1674235702028,33.76,22.22,22.201,20.42279918]
[1674235702356,33.76,22.224,22.202,43.79]
[1674235702533,33.76,22.224,22.203,17.0]
[1674235702749,33.76,22.224,22.204,33.79]
[1674235702973,33.76,22.224,22.205,17.0]
[1674235703180,27.0,22.223,22.205,17.0]
[1674235703395,33.76,22.222,22.205,17.0]
[1674235703610,33.76,22.222,22.204,17.0]
[1674235703807,33.76,22.222,22.205,10.0]
[1674235704137,33.76,22.222,22.206,17.0]
[1674235704446,10.0,22.223,22.207,10.0]
[1674235704640,10.0,22.223,22.208,17.0]
[1674235704852,10.0,22.223,22.208,37.42279918]
[1674235705488,33.76,22.222,22.208,17.0]
[1674235705700,10.0,22.223,22.206,17.0]
[1674235707065,153.9142,22.229,22.207,43.78]
[1674235707280,153.9142,22.229,22.21,27.44]
[1674235707492,120.1642,22.229,22.212,10.0]
[1674235707705,120.1642,22.229,22.213,33.77]
[1674235707916,120.1642,22.229,22.214,17.0]
[1674235708125,153.9142,22.229,22.213,20.42279918]
[1674235708325,153.9142,22.229,22.213,50.65350844]
[1674235708532,33.75,22.227,22.203,33.79]
[1674235709073,27.0,22.226,22.204,10.0]
[1674235709292,33.75,22.225,22.203,33.79]
[1674235709505,17.0,22.224,22.2,10.0]
[1674235709814,27.59,22.22,22.201,20.0]
[1674235710014,10.0,22.218,22.201,20.0]
[1674235710225,10.0,22.216,22.199,20.0]
[1674235710850,10.0,22.216,22.2,17.0]
[1674235711302,10.0,22.216,22.201,20.0]
[1674235711686,33.77,22.215,22.195,33.8]
[1674235711895,10.0,22.213,22.193,83.90713577]
[1674235712125,43.77,22.213,22.193,83.90713577]
[1674235712314,10.0,22.213,22.193,83.90713577]
[1674235712751,43.77,22.213,22.193,33.8]
[1674235712957,43.77,22.213,22.194,10.0]
[1674235713179,43.77,22.213,22.192,33.8]
[1674235713586,10.0,22.211,22.188,33.81]
[1674235713786,78.3,22.21,22.188,33.81]
[1674235713993,10.0,22.209,22.188,33.81]
[1674235714208,10.0,22.207,22.188,33.81]
[1674235714846,10.0,22.207,22.189,20.0]
[1674235715065,10.0,22.207,22.19,50.81]
[1674235715291,10.0,22.207,22.191,20.0]
[1674235715481,10.0,22.207,22.192,17.0]
[1674235716427,10.0,22.207,22.191,20.0]
[1674235716646,17.0,22.206,22.189,20.0]
[1674235716952,10.0,22.205,22.189,20.0]
[1674235717987,10.0,22.205,22.19,10.0]
[1674235718209,10.0,22.205,22.188,33.81]
[1674235718210,10.0,22.205,22.191,20.0]
[1674235718731,10.0,22.205,22.188,53.81]
[1674235719168,10.0,22.205,22.188,20.0]
[1674235719382,17.0,22.204,22.188,20.0]
[1674235719570,10.0,22.205,22.188,53.81]
[1674235719784,10.0,22.205,22.189,10.0]
[1674235720104,10.0,22.205,22.19,20.0]
[1674235720637,43.78,22.205,22.187,50.10713577]
[1674235721799,43.78,22.205,22.188,17.0]
[1674235721994,10.0,22.203,22.187,50.10713577]
[1674235722203,17.0,22.202,22.187,50.10713577]
[1674235722963,17.0,22.202,22.182,10.0]
[1674235723277,10.0,22.203,22.183,50.82]
[1674235723702,10.0,22.203,22.184,10.0]
[1674235723892,119.4679,22.208,22.185,50.81]
[1674235724226,23.48407121,22.243,22.185,50.81]
[1674235724227,119.7824,22.215,22.19,27.63]
[1674235724436,119.7824,22.215,22.191,70.81]
[1674235724657,33.77,22.212,22.191,50.81]
[1674235724835,10.0,22.211,22.191,50.81]
[1674235725593,50.78,22.21,22.192,10.0]
[1674235725783,10.0,22.209,22.193,17.0]
[1674235725993,43.77,22.213,22.191,17.0]
[1674235726308,33.77,22.213,22.192,83.70858244]
[1674235726525,119.7824,22.215,22.193,17.0]
[1674235726732,119.7824,22.215,22.194,43.8]
[1674235726943,43.77,22.214,22.195,17.0]
[1674235727164,10.0,22.214,22.196,33.8]
[1674235727480,10.0,22.214,22.197,17.0]
[1674235728198,10.0,22.214,22.197,10.0]
[1674235728426,10.0,22.214,22.198,17.0]
[1674235729036,10.0,22.214,22.195,33.8]
[1674235729270,33.77,22.213,22.195,33.8]
[1674235729455,10.0,22.212,22.191,33.81]
[1674235729872,10.0,22.21,22.191,33.81]
[1674235730096,17.0,22.209,22.191,33.81]
[1674235730304,17.0,22.209,22.189,10.0]
[1674235730305,10.0,22.208,22.189,10.0]
[1674235730524,10.0,22.208,22.19,53.81]
[1674235730736,10.0,22.206,22.19,20.0]
[1674235730926,10.0,22.206,22.188,33.81]
[1674235731137,10.0,22.204,22.183,33.82]
[1674235731473,50.79,22.203,22.181,33.82]
[1674235731797,10.0,22.202,22.182,10.0]
[1674235732006,50.79,22.201,22.182,10.0]
[1674235732321,10.0,22.2,22.179,10.0]
[1674235732502,10.0,22.2,22.181,10.0]
[1674235732715,33.79,22.199,22.182,33.82]
[1674235733135,10.0,22.2,22.183,17.0]
[1674235733361,10.0,22.2,22.182,17.0]
[1674235733681,10.0,22.2,22.183,10.0]
[1674235733871,10.0,22.2,22.184,17.0]
[1674235734510,17.0,22.199,22.178,33.83]
[1674235734711,10.0,22.198,22.18,10.0]
[1674235734922,10.0,22.198,22.181,17.0]
[1674235735796,10.0,22.198,22.182,33.82]
[1674235735990,10.0,22.198,22.183,17.0]
[1674235736433,10.0,22.198,22.182,17.0]
[1674235737897,10.0,22.198,22.181,33.82]
[1674235738114,50.8,22.197,22.179,20.0]
[1674235738323,10.0,22.196,22.179,20.0]
[1674235738533,10.0,22.196,22.178,20.0]
[1674235738931,10.0,22.196,22.174,33.83]
[1674235739273,10.0,22.196,22.168,40.57374177]
[1674235739274,163.8255,22.195,22.171,33.84]
[1674235739671,113.0255,22.195,22.172,10.0]
[1674235739885,113.0255,22.195,22.173,33.83]
[1674235740094,10.0,22.199,22.174,10.0]
[1674235740302,10.0,22.199,22.175,51.79]
[1674235740624,127.766,22.209,22.175,51.79]
[1674235740625,127.766,22.209,22.181,10.0]
[1674235740823,240.7915,22.209,22.182,71.78]
[1674235741034,240.7915,22.209,22.182,92.20279918]
[1674235741241,240.7915,22.209,22.183,30.42279918]
[1674235741455,240.7915,22.209,22.184,70.82]
[1674235741667,10.0,22.209,22.185,10.0]
[1674235741875,10.0,22.218,22.19,27.63]
[1674235741876,156.7855,22.218,22.19,27.63]
[1674235742082,123.0255,22.218,22.191,70.81]
[1674235742298,123.0255,22.218,22.192,10.0]
[1674235742505,123.0255,22.218,22.193,71.76]
[1674235742718,123.0255,22.218,22.193,151.0435274]
[1674235742719,10.0,22.218,22.193,151.0435274]
[1674235743056,10.0,22.218,22.194,79.74588762]
[1674235743240,10.0,22.218,22.195,70.8]
[1674235743453,10.0,22.218,22.195,91.22279918]
[1674235743675,43.76,22.218,22.195,33.8]
[1674235743885,33.77,22.215,22.191,33.81]
[1674235744093,27.63,22.21,22.188,33.81]
[1674235744300,55.98137,22.209,22.182,33.82]
[1674235744510,27.63,22.2,22.177,33.83]
[1674235744736,50.79,22.199,22.177,33.83]
[1674235745047,50.79,22.199,22.175,33.83]
[1674235745253,117.1162,22.198,22.177,20.42279918]
[1674235745464,33.8,22.197,22.178,33.83]
[1674235745675,225.1643,22.198,22.178,33.83]
[1674235745885,225.1643,22.198,22.179,37.42279918]
[1674235746208,10.0,22.196,22.18,20.42279918]
[1674235746422,10.0,22.196,22.181,33.82]
[1674235746639,17.0,22.195,22.175,33.83]
[1674235747033,17.0,22.195,22.175,54.25279918]
[1674235747239,10.0,22.194,22.176,20.42279918]
[1674235747450,10.0,22.194,22.177,33.83]
[1674235747679,10.0,22.194,22.178,20.0]
[1674235747887,10.0,22.194,22.179,17.0]
[1674235748291,10.0,22.194,22.18,20.0]
[1674235748840,10.0,22.194,22.178,20.42279918]
[1674235748841,10.0,22.194,22.179,20.0]
[1674235749032,10.0,22.194,22.175,53.83]
[1674235749467,10.0,22.194,22.175,33.83]
[1674235749685,50.8,22.193,22.175,33.83]
[1674235749872,50.8,22.193,22.171,33.84]
[1674235750077,10.0,22.192,22.172,17.0]
[1674235750293,17.0,22.191,22.173,33.83]
[1674235750630,17.0,22.191,22.174,17.0]
[1674235750631,10.0,22.19,22.174,17.0]
[1674235750827,10.0,22.19,22.171,33.84]
[1674235751149,17.0,22.189,22.17,33.84]
[1674235751348,33.81,22.188,22.161,33.85]
[1674235751547,10.0,22.186,22.161,33.85]
[1674235751757,33.82,22.185,22.158,20.42279918]
[1674235751966,17.0,22.184,22.159,33.85]
[1674235752200,33.82,22.183,22.159,33.85]
[1674235752402,17.0,22.182,22.159,33.85]
[1674235752599,43.82,22.181,22.159,33.85]
[1674235753233,27.63,22.18,22.159,33.85]
[1674235753441,10.0,22.178,22.155,33.86]
[1674235753667,33.83,22.177,22.155,33.86]
[1674235753875,10.0,22.178,22.155,54.28279918]
[1674235754068,10.0,22.178,22.156,30.42279918]
[1674235754403,10.0,22.178,22.157,54.28279918]
[1674235754612,10.0,22.178,22.158,10.0]
[1674235754821,10.0,22.178,22.159,53.85]
[1674235755146,17.0,22.177,22.159,53.85]
[1674235755335,50.83,22.177,22.159,20.0]
[1674235755542,10.0,22.176,22.159,20.0]
[1674235755767,10.0,22.176,22.153,20.0]
[1674235755955,10.0,22.176,22.154,33.86]
[1674235756172,10.0,22.176,22.155,20.0]
[1674235756381,33.83,22.175,22.152,33.87]
[1674235756604,10.0,22.174,22.152,33.87]
[1674235756807,33.83,22.173,22.152,33.87]
[1674235757022,17.0,22.172,22.152,33.87]
[1674235757226,17.0,22.172,22.145,43.25928177]
[1674235757441,10.0,22.17,22.147,10.0]
[1674235757651,10.0,22.17,22.148,33.87]
[1674235757866,10.0,22.17,22.148,53.87]
[1674235758184,10.0,22.17,22.148,33.87]
[1674235758402,10.0,22.168,22.148,33.87]
[1674235759531,10.0,22.168,22.149,37.0]
[1674235759754,10.0,22.168,22.15,33.87]
[1674235759970,10.0,22.168,22.151,37.0]
[1674235760510,10.0,22.168,22.152,33.87]
[1674235760713,10.0,22.168,22.153,17.0]
[1674235762165,10.0,22.168,22.152,33.87]
[1674235762500,10.0,22.168,22.151,20.0]
[1674235762688,10.0,22.168,22.15,20.0]
[1674235762902,10.0,22.168,22.147,20.0]
[1674235763214,17.0,22.167,22.148,33.87]
[1674235763419,17.0,22.167,22.147,20.0]
[1674235763420,10.0,22.166,22.149,20.0]
[1674235763638,10.0,22.166,22.148,33.87]
[1674235763948,10.0,22.166,22.149,20.0]
[1674235764492,10.0,22.166,22.146,53.87]
[1674235764493,33.85,22.165,22.146,53.87]
[1674235764685,17.0,22.164,22.146,33.87]
[1674235764895,10.0,22.163,22.143,33.88]
[1674235765107,124.3373,22.163,22.142,33.88]
[1674235765420,124.3373,22.163,22.143,10.0]
[1674235765633,124.3373,22.163,22.144,33.88]
[1674235765634,10.0,22.163,22.144,33.88]
[1674235765863,10.0,22.163,22.144,54.30279918]
[1674235766263,10.0,22.163,22.15,27.44]
[1674235766492,10.0,22.163,22.151,50.87]
[1674235766684,10.0,22.166,22.152,20.0]
[1674235766897,10.0,22.168,22.153,50.86]
[1674235767561,10.0,22.168,22.153,33.86]
[1674235768597,17.0,22.167,22.152,20.0]
[1674235768941,10.0,22.166,22.151,20.0]
[1674235769119,10.0,22.166,22.147,20.0]
[1674235769332,10.0,22.166,22.148,33.87]
[1674235769535,17.0,22.165,22.149,20.0]
[1674235769745,17.0,22.165,22.147,20.0]
[1674235769952,10.0,22.166,22.147,20.0]
[1674235770166,10.0,22.166,22.148,33.87]
[1674235770375,10.0,22.166,22.149,20.0]
[1674235770582,43.84,22.166,22.149,20.0]
[1674235770818,43.84,22.166,22.147,20.0]
[1674235771023,10.0,22.166,22.146,20.0]
[1674235771223,10.0,22.166,22.147,33.87]
[1674235771562,10.0,22.164,22.145,33.88]
[1674235771750,50.85,22.163,22.144,33.88]
[1674235771952,50.85,22.163,22.14,33.88]
[1674235772169,27.49,22.16,22.14,33.88]
[1674235772378,60.85,22.159,22.139,33.89]
[1674235772918,10.0,22.158,22.139,33.89]
[1674235773645,50.86,22.157,22.136,33.89]
[1674235773967,10.0,22.156,22.135,41.01733644]
[1674235774181,33.86,22.155,22.135,41.01733644]
[1674235774495,10.0,22.154,22.135,41.01733644]
[1674235774806,10.0,22.154,22.134,33.89]
[1674235775022,27.49,22.15,22.133,33.89]
[1674235775337,10.0,22.149,22.132,112.4372]
[1674235775529,10.0,22.149,22.133,33.89]
[1674235776060,10.0,22.149,22.132,33.9]
[1674235776281,10.0,22.149,22.133,17.0]
[1674235776593,10.0,22.154,22.134,33.89]
[1674235776790,10.0,22.156,22.135,37.0]
[1674235777012,10.0,22.156,22.136,33.89]
[1674235777213,10.0,22.156,22.138,10.0]
[1674235777539,10.0,22.156,22.139,70.89]
[1674235778146,10.0,22.156,22.141,10.0]
[1674235778370,10.0,22.161,22.142,50.88]
[1674235779113,43.84,22.17,22.143,21.38279918]
[1674235779304,10.0,22.17,22.15,27.44]
[1674235779516,10.0,22.17,22.151,70.87]
[1674235779721,10.0,22.172,22.152,10.0]
[1674235780046,125.8912,22.174,22.153,50.86]
[1674235780262,43.81,22.186,22.155,10.0]
[1674235780469,159.7012,22.186,22.16,27.44]
[1674235780678,159.7012,22.186,22.161,53.85]
[1674235780890,33.82,22.18,22.161,20.0]
[1674235781214,33.82,22.18,22.162,17.0]
[1674235781615,33.82,22.184,22.16,17.0]
[1674235781826,33.82,22.184,22.161,53.85]
[1674235782038,10.0,22.183,22.162,17.0]
[1674235782254,33.82,22.182,22.162,17.0]
[1674235783101,33.82,22.182,22.163,33.85]
[1674235783330,10.0,22.183,22.164,17.0]
[1674235783956,10.0,22.183,22.162,33.85]
[1674235783957,10.0,22.183,22.163,17.0]
[1674235784167,10.0,22.183,22.164,33.85]
[1674235784377,10.0,22.183,22.165,17.0]
[1674235784600,10.0,22.183,22.162,33.85]
[1674235784792,33.82,22.182,22.162,33.85]
[1674235785418,27.49,22.17,22.151,33.87]
[1674235785630,27.49,22.17,22.146,10.0]
[1674235785631,10.0,22.169,22.146,10.0]
[1674235785854,10.0,22.169,22.147,33.87]
[1674235786072,33.83,22.175,22.15,27.44]
[1674235786282,43.82,22.179,22.151,43.87]
[1674235786469,10.0,22.179,22.151,43.87]
[1674235786680,10.0,22.179,22.16,27.44]
[1674235786892,10.0,22.179,22.161,33.85]
[1674235787114,10.0,22.179,22.162,17.0]
[1674235787337,10.0,22.179,22.163,53.85]
[1674235787533,10.0,22.179,22.164,17.0]
[1674235787749,10.0,22.179,22.165,53.85]
[1674235787942,10.0,22.179,22.166,17.0]
[1674235788149,10.0,22.179,22.167,33.84]
[1674235788384,10.0,22.179,22.161,33.85]
[1674235788696,10.0,22.179,22.155,10.0]
[1674235788886,114.3489,22.178,22.156,33.86]
[1674235789100,10.0,22.177,22.156,33.86]
[1674235789637,10.0,22.177,22.157,20.0]
[1674235789963,10.0,22.177,22.158,33.86]
[1674235790167,10.0,22.177,22.159,19.5]
[1674235790781,33.83,22.176,22.153,33.86]
[1674235790997,10.0,22.175,22.154,10.0]
[1674235791231,10.0,22.175,22.155,33.86]
[1674235791536,10.0,22.175,22.156,17.0]
[1674235791728,10.0,22.175,22.155,33.86]
[1674235791939,10.0,22.175,22.153,33.86]
[1674235792150,10.0,22.175,22.154,30.0]
[1674235792384,10.0,22.175,22.155,33.86]
[1674235792590,10.0,22.177,22.156,20.0]
[1674235792785,10.0,22.177,22.157,43.86]
[1674235792995,10.0,22.177,22.161,10.0]
[1674235793199,10.0,22.177,22.162,70.85]
[1674235793407,10.0,22.177,22.162,37.0]
[1674235793825,33.83,22.176,22.162,20.0]
[1674235794036,17.0,22.175,22.155,33.86]
[1674235794242,33.83,22.174,22.147,33.87]
[1674235794476,17.0,22.173,22.146,33.87]
[1674235794694,33.83,22.172,22.146,33.87]
[1674235794875,27.49,22.17,22.145,33.88]
[1674235795111,10.0,22.169,22.145,33.88]
[1674235795321,43.84,22.169,22.147,20.39358979]
[1674235795528,10.0,22.169,22.148,33.87]
[1674235795956,10.0,22.169,22.149,20.39358979]
[1674235796280,10.0,22.169,22.15,61.31]
[1674235796491,10.0,22.169,22.151,17.0]
[1674235796692,10.0,22.169,22.152,33.87]
[1674235796904,10.0,22.169,22.153,17.0]
[1674235797631,10.0,22.169,22.152,17.0]
[1674235798197,10.0,22.169,22.153,33.86]
[1674235798366,10.0,22.169,22.154,17.0]
[1674235798572,10.0,22.169,22.153,33.86]
[1674235798787,10.0,22.169,22.146,33.87]
[1674235799103,10.0,22.167,22.147,20.0]
[1674235799323,10.0,22.167,22.148,33.87]
[1674235799528,10.0,22.167,22.149,20.0]
[1674235799751,10.0,22.167,22.15,33.87]
[1674235799939,10.0,22.167,22.151,37.0]
[1674235800884,10.0,22.167,22.152,43.87]
[1674235801103,10.0,22.167,22.153,17.0]
[1674235801313,10.0,22.167,22.154,33.86]
[1674235801533,10.0,22.169,22.155,17.0]
[1674235801750,10.0,22.169,22.156,33.86]
[1674235801961,10.0,22.169,22.157,17.0]
[1674235802621,10.0,22.169,22.155,17.0]
[1674235802778,10.0,22.169,22.152,33.87]
[1674235802988,10.0,22.169,22.151,53.87]
[1674235803204,10.0,22.169,22.151,20.0]
[1674235803529,10.0,22.169,22.152,33.87]
[1674235804688,10.0,22.169,22.153,17.0]
[1674235805001,10.0,22.169,22.154,33.86]
[1674235805212,10.0,22.169,22.155,17.0]
[1674235805429,10.0,22.169,22.156,33.86]
[1674235805631,10.0,22.169,22.157,17.0]
[1674235807716,10.0,22.169,22.155,17.0]
[1674235807932,10.0,22.171,22.155,17.0]
[1674235808135,111.1409,22.172,22.155,17.0]
[1674235808136,129.8942,22.179,22.156,53.86]
[1674235808356,129.8942,22.179,22.157,17.0]
[1674235808570,129.8942,22.179,22.158,33.86]
[1674235808765,129.8942,22.179,22.159,37.0]
[1674235808974,33.82,22.184,22.16,70.79]
[1674235809210,10.0,22.186,22.161,37.0]
[1674235809409,10.0,22.186,22.162,34.81]
[1674235809617,10.0,22.186,22.163,37.0]
[1674235809824,10.0,22.186,22.165,10.0]
[1674235810041,10.0,22.186,22.166,50.84]
[1674235810257,10.0,22.186,22.167,20.0]
[1674235810449,10.0,22.186,22.168,50.84]
[1674235810657,33.8,22.195,22.169,20.0]
[1674235810885,33.8,22.195,22.171,10.0]
[1674235811203,10.0,22.193,22.172,96.84977844]
[1674235811412,10.0,22.193,22.173,17.0]
[1674235811612,10.0,22.193,22.174,33.83]
[1674235811828,10.0,22.193,22.175,17.0]
[1674235812033,10.0,22.193,22.176,33.83]
[1674235812249,10.0,22.193,22.177,17.0]
[1674235812467,10.0,22.193,22.178,10.0]
[1674235812784,10.0,22.193,22.179,17.0]
[1674235813390,10.0,22.198,22.18,53.82]
[1674235813601,144.0134,22.204,22.181,17.0]
[1674235813810,10.0,22.203,22.183,10.0]
[1674235814038,10.0,22.203,22.184,50.82]
[1674235814473,151.167,22.209,22.185,0.96]
[1674235814677,151.167,22.209,22.186,33.81]
[1674235814889,151.167,22.209,22.187,17.0]
[1674235815104,33.78,22.209,22.188,33.81]
[1674235815316,33.76,22.218,22.189,37.0]
[1674235815513,33.76,22.218,22.19,33.81]
[1674235815717,27.52,22.21,22.191,37.0]
[1674235815925,10.0,22.209,22.191,37.0]
[1674235816768,10.0,22.209,22.192,10.0]
[1674235816985,43.78,22.208,22.191,20.39358979]
[1674235817197,43.78,22.208,22.182,33.82]
[1674235817395,109.3598,22.207,22.182,33.82]
[1674235817837,10.0,22.206,22.183,10.0]
[1674235818023,10.0,22.206,22.184,33.82]
[1674235818238,10.0,22.206,22.185,10.0]
[1674235818470,10.0,22.206,22.186,50.81]
[1674235818670,10.0,22.206,22.187,20.0]
[1674235818880,10.0,22.206,22.188,17.0]
[1674235819089,10.0,22.206,22.189,20.0]
[1674235819302,10.0,22.206,22.184,33.82]
[1674235819303,27.52,22.2,22.184,33.82]
[1674235819493,27.52,22.2,22.177,33.83]
[1674235819709,10.0,22.198,22.177,33.83]
[1674235820025,50.8,22.197,22.172,33.83]
[1674235820229,10.0,22.196,22.172,33.83]
[1674235820461,33.8,22.195,22.172,33.83]
[1674235820652,10.0,22.194,22.172,33.83]
[1674235820864,33.8,22.193,22.172,33.83]
[1674235821080,27.52,22.19,22.166,33.84]
[1674235821291,33.81,22.189,22.167,20.0]
[1674235821500,33.81,22.189,22.16,36.94]
[1674235821501,10.0,22.188,22.166,20.0]
[1674235821817,33.81,22.187,22.163,53.35]
[1674235822023,10.0,22.186,22.164,10.0]
[1674235822243,10.0,22.186,22.165,33.85]
[1674235822451,10.0,22.186,22.166,10.0]
[1674235822665,10.0,22.186,22.167,33.84]
[1674235823398,10.0,22.186,22.168,17.0]
[1674235823613,10.0,22.186,22.169,20.0]
[1674235823817,10.0,22.186,22.17,17.0]
[1674235824014,33.8,22.193,22.171,20.0]
[1674235824224,160.2502,22.196,22.172,50.83]
[1674235824451,160.2502,22.196,22.174,10.0]
[1674235824644,160.2502,22.196,22.175,50.83]
[1674235824976,33.8,22.193,22.172,17.0]
[1674235825215,33.8,22.193,22.176,17.0]
[1674235825386,10.0,22.192,22.172,17.0]
[1674235825820,160.2502,22.196,22.172,71.22358979]
[1674235826010,160.2502,22.196,22.174,10.0]
[1674235826352,126.4502,22.196,22.175,70.83]
[1674235827164,43.8,22.195,22.175,50.83]
[1674235827371,33.8,22.193,22.175,17.0]
[1674235827602,10.0,22.192,22.167,43.84]
[1674235827794,27.49,22.19,22.167,33.84]
[1674235828013,17.0,22.189,22.161,33.85]
[1674235828212,33.81,22.188,22.155,33.86]
[1674235828427,17.0,22.187,22.155,33.86]
[1674235828658,10.0,22.185,22.156,10.0]
[1674235828872,33.82,22.184,22.157,33.86]